bitfinex-derivatives/quotes_ETHF0:USTF0_20250210
["timestamp","ask_amount","ask_price","bid_price","bid_amount"]
[1739197890006,0.00563423,2664.6,2664.4,0.621]
[1739197891213,0.00563423,2664.6,2664.1,0.00563423]
[1739197891506,0.00563423,2664.6,2664.3,3.2078]
[1739197891711,0.00563423,2664.6,2664.1,0.00563423]
[1739197892108,0.00563423,2664.6,2664.2,3.2078]
[1739197892609,0.00563423,2664.6,2664.5,3.2078]
[1739197893003,3.2078,2665.2,2664.5,3.2078]
[1739197893516,3.2078,2665.2,2664.6,41.4246]
[1739197895606,3.2078,2665.7,2665.0,3.2078]
[1739197896012,3.2078,2665.7,2664.7,5.0158]
[1739197896511,3.99121963,2665.6,2664.7,1.808]
[1739197896716,3.2078,2665.4,2664.7,1.808]
[1739197897512,3.2078,2665.4,2664.8,3.2078]
[1739197898407,3.2078,2665.7,2664.8,3.2078]
[1739197899015,3.2078,2665.7,2665.1,3.2078]
[1739197899318,3.2078,2665.7,2664.8,0.75039]
[1739197899319,3.2078,2666.1,2665.4,3.2078]
[1739197899719,3.2078,2666.1,2665.5,1.807]
[1739197900019,3.2078,2666.1,2665.6,40.8]
[1739197901723,0.6131,2666.3,2665.6,40.8]
[1739197901925,0.6131,2666.3,2665.5,1.81263423]
[1739197902223,3.2078,2666.1,2665.5,0.00563423]
[1739197902640,4.24123183,2666.0,2665.5,0.00563423]
[1739197902815,3.2078,2666.1,2665.5,0.00563423]
[1739197903221,0.6131,2666.3,2665.5,0.00563423]
[1739197903427,0.5816,2666.4,2665.9,3.2078]
[1739197904135,0.5816,2666.4,2665.7,3.2078]
[1739197904633,3.7894,2666.4,2665.7,3.2078]
[1739197905331,3.7894,2666.4,2665.6,1.2174]
[1739197905527,3.7894,2666.4,2665.6,0.6141]
[1739197905726,4.09694648,2666.3,2665.6,0.6141]
[1739197906634,0.5816,2666.4,2665.6,0.6141]
[1739197906830,0.5816,2666.4,2665.7,3.2078]
[1739197907630,3.2078,2666.3,2665.7,3.2078]
[1739197907936,0.5816,2666.4,2665.7,3.2078]
[1739197908133,3.2078,2666.1,2665.5,0.00563423]
[1739197908330,3.2078,2665.8,2665.5,0.00563423]
[1739197908532,0.5654,2665.7,2665.5,0.00563423]
[1739197909631,3.2078,2666.1,2665.5,0.00563423]
[1739197910032,4.30189569,2666.0,2665.5,0.00563423]
[1739197910239,0.5654,2666.4,2665.6,3.2078]
[1739197910935,0.5654,2666.4,2665.7,0.6006]
[1739197912130,0.5654,2666.4,2665.6,3.782]
[1739197912131,3.2078,2666.1,2665.6,3.2078]
[1739197912736,3.2078,2665.7,2665.5,0.00563423]
[1739197912933,1.1872,2665.6,2665.5,0.00563423]
[1739197913242,5.15793065,2665.6,2665.5,0.00563423]
[1739197913431,11.15793065,2665.6,2664.3,0.5742]
[1739197913737,11.15793065,2665.6,2664.3,1.181]
[1739197913738,3.2078,2665.1,2664.3,1.181]
[1739197913938,3.2078,2665.1,2664.4,40.8]
[1739197914737,0.00563423,2665.0,2664.5,0.00563423]
[1739197914932,0.00563423,2665.0,2664.5,3.21343423]
[1739197915537,0.00563423,2665.0,2664.8,3.2078]
[1739197916240,3.2078,2665.8,2664.9,5.39643208]
[1739197916533,3.2078,2665.8,2664.9,3.819]
[1739197917140,0.6191,2665.7,2664.9,3.819]
[1739197917338,1.1965,2665.7,2664.9,3.819]
[1739197918338,0.591,2666.1,2665.2,3.2078]
[1739197918535,0.591,2666.1,2665.5,3.2078]
[1739197919035,0.591,2666.1,2665.2,3.2078]
[1739197919436,0.591,2666.1,2665.3,40.8]
[1739197920046,0.591,2666.1,2665.5,3.2078]
[1739197920532,3.2078,2666.6,2665.8,3.2078]
[1739197920731,3.2078,2666.6,2665.8,3.9579]
[1739197920938,3.2078,2666.6,2665.9,0.5769]
[1739197921334,3.2078,2666.6,2665.9,0.58253423]
[1739197921537,3.2078,2666.6,2665.9,0.00563423]
[1739197921731,3.2078,2666.3,2665.9,0.00563423]
[1739197922436,3.2078,2666.6,2665.9,0.00563423]
[1739197922941,7.24958292,2666.6,2665.9,0.00563423]
[1739197923935,0.5883,2666.7,2665.9,0.00563423]
[1739197923936,0.5883,2666.7,2666.4,3.2078]
[1739197924846,0.5883,2666.7,2665.9,0.00563423]
[1739197925039,3.2078,2666.6,2666.0,40.8]
[1739197925345,3.2078,2666.5,2665.9,0.00563423]
[1739197925547,3.7667,2666.5,2665.9,0.00563423]
[1739197926347,3.2078,2666.5,2665.9,0.00563423]
[1739197928039,3.94960087,2666.4,2665.9,0.00563423]
[1739197928945,3.2078,2666.5,2665.9,3.21343423]
[1739197929339,0.5883,2666.7,2666.2,3.2078]
[1739197929940,3.2078,2667.1,2666.6,3.2078]
[1739197930446,3.2078,2667.1,2666.3,4.3741]
[1739197930639,4.23006656,2667.0,2666.3,4.3741]
[1739197930835,3.2078,2666.8,2666.3,0.6054]
[1739197931045,3.2078,2666.5,2665.9,0.00563423]
[1739197931247,3.2078,2666.4,2665.9,0.00563423]
[1739197931548,3.2078,2666.1,2665.9,0.00563423]
[1739197931750,0.594,2666.0,2665.9,0.00563423]
[1739197932043,4.89389036,2666.0,2665.9,0.00563423]
[1739197932445,4.89389036,2666.0,2665.3,40.8]
[1739197932637,4.89389036,2666.0,2664.9,0.5654]
[1739197932638,3.2078,2665.4,2664.9,0.5654]
[1739197932845,3.2078,2665.4,2664.7,0.5995]
[1739197933146,3.2078,2664.9,2664.8,40.8]
[1739197933347,4.92774431,2665.3,2664.8,40.8]
[1739197933548,0.594,2665.3,2664.8,40.8]
[1739197934045,0.594,2665.3,2664.9,3.2078]
[1739197934241,3.2078,2665.6,2664.9,5.39535667]
[1739197934436,0.5708,2665.5,2664.9,8.60315667]
[1739197934642,3.21343423,2666.2,2665.2,3.2078]
[1739197934847,0.00563423,2666.2,2665.8,3.2078]
[1739197935542,0.00563423,2666.2,2665.9,0.5681]
[1739197936247,0.00563423,2666.2,2666.1,3.2078]
[1739197936754,0.5719,2667.1,2666.1,3.2078]
[1739197937046,1.1427,2667.1,2666.1,44.0078]
[1739197937441,0.5708,2667.1,2666.5,3.2078]
[1739197937643,0.5708,2667.1,2666.6,0.6032]
[1739197938241,0.5575,2667.5,2666.9,3.2078]
[1739197938450,1.1483,2667.5,2666.9,3.2078]
[1739197938745,0.5908,2667.5,2666.9,3.2078]
[1739197939150,0.5908,2667.5,2667.2,3.2078]
[1739197939351,0.5575,2668.0,2667.2,3.2078]
[1739197939550,0.5575,2668.0,2667.5,3.2078]
[1739197939747,0.6051,2668.1,2667.5,3.2078]
[1739197939950,0.6051,2668.1,2667.8,3.2078]
[1739197940250,0.5908,2668.2,2667.5,3.2078]
[1739197940549,0.5908,2668.2,2667.8,3.2078]
[1739197941046,6.83362716,2669.5,2668.1,3.2078]
[1739197941244,3.2078,2669.3,2667.9,1.812]
[1739197941450,4.33055873,2669.0,2668.1,3.2078]
[1739197941649,0.63419504,2669.2,2668.0,0.5646]
[1739197941650,3.77704127,2669.2,2668.4,3.2078]
[1739197941849,0.58078292,2669.1,2668.4,3.2078]
[1739197942049,4.03907811,2668.9,2668.3,0.00562356]
[1739197942253,3.2078,2668.4,2668.3,0.00562356]
[1739197942545,3.2078,2668.8,2668.3,0.00562356]
[1739197942750,3.2078,2668.5,2668.3,0.00562356]
[1739197942951,0.5698,2668.4,2668.3,0.00562356]
[1739197943147,0.5698,2668.4,2667.3,0.5646]
[1739197943148,4.32133313,2668.4,2667.3,0.5646]
[1739197943358,3.2078,2668.2,2667.3,0.5646]
[1739197943550,3.2078,2668.2,2667.2,0.6037]
[1739197943551,3.2078,2667.8,2667.1,1.809]
[1739197943754,3.2078,2667.5,2666.9,0.5931]
[1739197944642,4.17650011,2667.4,2666.9,0.00562356]
[1739197944845,4.78300011,2667.4,2666.9,0.00562356]
[1739197945049,0.00558801,2667.5,2667.1,3.2078]
[1739197945254,3.21338801,2667.5,2666.9,0.00562356]
[1739197945954,0.00558801,2667.5,2667.4,3.2078]
[1739197946544,0.00558801,2667.5,2667.0,1.153]
[1739197946744,3.2078,2667.3,2666.9,0.00562356]
[1739197947153,3.96771965,2667.2,2666.9,0.00562356]
[1739197947954,3.2078,2667.0,2666.9,0.00562356]
[1739197948364,4.2210487,2667.0,2666.9,0.00562356]
[1739197948858,0.583,2667.3,2666.9,0.00562356]
[1739197949448,4.34626874,2667.2,2666.9,0.00562356]
[1739197949649,3.2078,2667.0,2666.9,0.00562356]
[1739197949854,3.2078,2667.0,2665.8,3.7955]
[1739197949855,3.2078,2667.0,2665.9,0.5992]
[1739197950054,7.25455279,2667.0,2665.9,0.5992]
[1739197950255,7.25455279,2667.0,2666.3,3.2078]
[1739197950446,3.2078,2666.8,2666.0,40.8]
[1739197950648,3.2078,2666.1,2666.0,40.8]
[1739197950849,3.2078,2666.1,2665.5,3.2078]
[1739197951059,7.36838872,2666.1,2665.3,0.5992]
[1739197951251,7.36838872,2666.1,2665.8,0.00562356]
[1739197951252,3.2078,2666.0,2665.8,0.00562356]
[1739197951653,4.16058872,2665.9,2665.8,0.00562356]
[1739197951849,3.62582716,2666.7,2665.8,0.00562356]
[1739197951850,3.2078,2666.9,2665.8,0.00562356]
[1739197952045,3.2078,2666.9,2666.3,3.2078]
[1739197952660,3.2078,2666.9,2666.1,3.2078]
[1739197952952,3.21342356,2666.9,2666.1,3.2078]
[1739197953160,3.21342356,2666.9,2665.9,0.5784]
[1739197953161,0.00562356,2666.9,2666.7,3.2078]
[1739197954352,3.2078,2667.9,2666.8,9.15216187]
[1739197954554,3.2078,2667.9,2667.1,3.2078]
[1739197954755,3.2078,2667.9,2667.4,3.2078]
[1739197954953,3.2078,2667.9,2667.5,40.8]
[1739197956160,0.00558801,2668.0,2667.5,40.8]
[1739197956366,0.00558801,2668.0,2667.8,3.2078]
[1739197956567,7.41269617,2667.9,2667.5,40.8]
[1739197956865,0.5673,2667.8,2667.4,0.00562356]
[1739197957254,3.2078,2667.6,2667.4,0.00562356]
[1739197957468,3.2078,2667.5,2667.4,0.00562356]
[1739197957765,4.3452,2667.8,2667.4,0.00562356]
[1739197958060,7.25958795,2667.5,2666.4,0.5989]
[1739197958267,3.2078,2667.4,2666.4,0.5989]
[1739197958562,7.25958795,2667.4,2666.8,3.2078]
[1739197958868,7.25958795,2667.4,2666.4,0.5989]
[1739197958869,1.1374,2667.8,2667.2,3.2078]
[1739197959062,0.5673,2667.8,2667.2,3.2078]
[1739197959266,0.5673,2667.8,2667.5,3.2078]
[1739197959458,3.21338801,2668.0,2667.5,3.2078]
[1739197960367,3.21338801,2668.0,2667.6,40.8]
[1739197960767,3.2078,2667.7,2667.2,0.00562356]
[1739197962070,3.2078,2667.4,2667.2,0.00562356]
[1739197962573,0.5707,2667.3,2667.2,0.00562356]
[1739197962968,0.5707,2667.3,2666.1,3.2078]
[1739197962969,0.74974,2667.2,2666.1,3.2078]
[1739197963273,3.2078,2666.6,2665.5,3.2078]
[1739197963462,3.2078,2666.6,2665.8,3.2078]
[1739197964167,3.2078,2666.9,2665.8,3.2078]
[1739197964467,3.2078,2666.9,2665.6,42.642]
[1739197964468,0.00562356,2666.5,2666.2,3.2078]
[1739197965176,0.00562356,2666.5,2666.3,0.5887]
[1739197965569,0.00562356,2666.5,2666.4,0.5915]
[1739197965767,3.8095,2667.6,2666.4,0.5915]
[1739197965967,3.8095,2667.6,2667.1,3.2078]
[1739197966167,0.60128393,2667.8,2667.1,3.2078]
[1739197966568,0.00388393,2667.8,2667.4,3.2078]
[1739197967773,0.00388393,2667.8,2667.3,0.00562356]
[1739197968568,0.00388393,2667.8,2667.4,3.2078]
[1739197968963,0.00388393,2667.8,2667.5,0.5578]
[1739197969275,3.2078,2667.6,2667.3,0.00562356]
[1739197970371,3.2078,2667.6,2666.2,3.2078]
[1739197970372,0.7497,2667.4,2666.2,3.2078]
[1739197970672,3.2078,2667.1,2666.2,3.2078]
[1739197970976,3.2078,2667.1,2666.3,40.8]
[1739197971375,3.2078,2666.5,2666.3,40.8]
[1739197971675,3.62582716,2667.5,2666.4,0.00562356]
[1739197971676,3.2078,2666.8,2666.4,0.00562356]
[1739197972077,3.2078,2666.9,2666.4,0.00562356]
[1739197972271,3.2078,2666.9,2665.3,0.75026]
[1739197972272,3.2078,2666.5,2665.0,3.2078]
[1739197972471,3.2078,2665.6,2664.9,0.5887]
[1739197972677,3.2078,2665.5,2664.9,0.5887]
[1739197972973,3.2078,2665.0,2664.5,40.8]
[1739197973864,3.21342356,2665.0,2664.5,40.80562356]
[1739197974775,0.00562356,2665.0,2664.5,44.01342356]
[1739197975168,0.00562356,2665.0,2664.8,3.2078]
[1739197975375,3.2078,2665.6,2664.8,6.83362716]
[1739197975578,3.2078,2665.6,2664.9,0.5906]
[1739197975978,3.2078,2666.1,2665.2,3.2078]
[1739197976678,0.00562356,2665.9,2665.7,3.2078]
[1739197976975,0.5554,2666.6,2665.5,3.2078]
[1739197977478,0.5554,2666.6,2666.1,3.2078]
[1739197977777,3.2078,2667.1,2666.1,3.2078]
[1739197977974,3.7678,2667.1,2666.1,5.0668]
[1739197978179,3.7678,2667.1,2666.2,40.8]
[1739197978485,0.00562356,2666.9,2666.7,3.2078]
[1739197978671,0.00562356,2666.9,2666.3,3.78232356]
[1739197979978,0.00562356,2666.9,2666.3,0.57452356]
[1739197980278,0.00562356,2666.9,2666.3,3.78232356]
[1739197980575,0.00562356,2666.9,2666.6,3.2078]
[1739197981275,0.00562356,2666.9,2666.4,0.5877]
[1739197981579,3.21342356,2666.9,2666.3,0.57452356]
[1739197981874,3.2078,2666.6,2666.3,0.00562356]
[1739197982278,4.10376331,2666.5,2666.3,0.00562356]
[1739197982469,0.5561,2666.4,2666.3,0.00562356]
[1739197983076,0.5506,2666.8,2666.3,0.00562356]
[1739197983278,1.147,2666.8,2666.3,0.00562356]
[1739197983579,0.5964,2666.8,2666.3,0.00562356]
[1739197984081,4.24272675,2666.7,2666.3,0.00562356]
[1739197984276,0.00562356,2666.9,2666.4,3.2078]
[1739197984477,0.00562356,2666.9,2666.7,3.2078]
[1739197984778,3.2078,2667.6,2666.7,3.2078]
[1739197984970,3.2078,2667.6,2667.0,3.2078]
[1739197985174,0.5964,2667.9,2667.3,3.2078]
[1739197985781,0.5964,2667.9,2667.0,3.2078]
[1739197985981,0.5964,2667.9,2667.1,0.5737]
[1739197986174,0.5964,2667.9,2666.4,3.62582716]
[1739197986175,3.2078,2667.6,2666.6,4.86003346]
[1739197986380,3.2078,2667.6,2666.6,0.5737]
[1739197986682,4.13512243,2667.5,2666.6,3.7815]
[1739197986877,0.57387194,2667.8,2666.9,3.2078]
[1739197987078,3.2078,2667.6,2666.9,3.2078]
[1739197987377,0.57387194,2667.8,2666.9,3.2078]
[1739197987779,3.2078,2667.5,2666.6,3.7815]
[1739197987979,0.57387194,2667.8,2666.6,3.7815]
[1739197987980,3.2078,2667.1,2666.6,0.5737]
[1739197988281,7.5546684,2667.4,2666.6,0.5737]
[1739197988481,0.5993,2667.0,2666.2,3.2078]
[1739197988678,0.5993,2667.0,2666.6,3.2078]
[1739197988879,3.2078,2667.7,2666.6,3.2078]
[1739197989188,3.2078,2667.7,2666.7,0.5507]
[1739197989390,3.2078,2667.7,2666.8,40.8]
[1739197989579,3.2078,2667.7,2666.8,41.3763]
[1739197989785,3.2078,2667.1,2666.8,0.5763]
[1739197990383,3.2078,2667.1,2666.3,0.00562356]
[1739197990583,0.74984,2666.9,2666.3,0.00562356]
[1739197990886,3.2078,2666.7,2666.3,0.00562356]
[1739197991278,3.93753718,2666.6,2666.3,0.00562356]
[1739197991687,3.2078,2666.7,2666.3,0.00562356]
[1739197992087,0.5966,2666.9,2666.3,0.00562356]
[1739197992392,3.7867,2667.0,2666.3,0.00562356]
[1739197993487,3.2078,2667.4,2666.4,3.2078]
[1739197993788,0.00947194,2667.8,2666.9,3.2078]
[1739197993789,0.5683,2667.7,2666.9,3.2078]
[1739197994083,0.00947194,2667.8,2667.3,3.2078]
[1739197994588,0.00947194,2667.8,2667.0,0.5577]
[1739197994888,0.00947194,2667.8,2667.2,3.2078]
[1739197995479,0.00947194,2667.8,2667.5,3.2078]
[1739197995680,0.00947194,2667.8,2667.2,3.2078]
[1739197995882,3.21727194,2667.8,2667.2,3.2078]
[1739197996079,0.00947194,2667.8,2667.2,3.2078]
[1739197996492,0.00947194,2667.8,2666.8,1.885]
[1739197996493,3.2078,2667.5,2666.8,1.885]
[1739197997081,3.2078,2667.5,2666.8,42.685]
[1739197997295,3.2078,2667.2,2666.6,0.5733]
[1739197997492,3.2078,2667.5,2666.6,0.5733]
[1739197997703,3.2078,2667.5,2666.5,0.5955]
[1739197997704,3.2078,2667.2,2666.5,0.5955]
[1739197998191,3.2078,2667.5,2666.5,0.5955]
[1739197998586,3.2078,2667.1,2666.5,0.5955]
[1739197998894,0.5693,2667.6,2666.5,0.5955]
[1739197998895,3.2078,2667.4,2666.5,0.5955]
[1739197999093,3.2078,2667.1,2666.5,0.5955]
[1739197999282,4.08833085,2667.3,2666.7,3.2078]
[1739197999491,0.5693,2667.6,2666.5,0.5955]
[1739198000188,0.5693,2667.6,2666.7,3.2078]
[1739198000384,0.5693,2667.6,2666.8,0.5736]
[1739198000994,0.5693,2667.6,2667.0,3.2078]
[1739198001188,0.00947194,2667.8,2667.3,3.2078]
[1739198001388,0.00947194,2667.8,2667.7,3.2078]
[1739198001786,0.00947194,2667.8,2667.1,3.2078]
[1739198001994,0.00947194,2667.8,2667.4,3.2078]
[1739198002587,0.00947194,2667.8,2667.0,3.2078]
[1739198002794,0.00947194,2667.8,2667.0,2.4529]
[1739198003285,4.29235657,2667.7,2667.0,0.5699]
[1739198003486,3.2078,2667.5,2666.8,0.5736]
[1739198003687,3.2078,2667.2,2666.4,3.7777]
[1739198003886,3.2078,2667.2,2666.7,3.2078]
[1739198004086,3.2078,2667.2,2666.4,4.3791]
[1739198004290,3.2078,2667.2,2666.5,40.8]
[1739198004493,1.1351,2667.6,2666.7,3.2078]
[1739198004494,3.2078,2667.5,2666.7,3.2078]
[1739198004786,0.581,2667.6,2666.7,3.2078]
[1739198004984,0.581,2667.6,2667.1,3.2078]
[1739198005188,0.00947194,2667.8,2667.4,3.2078]
[1739198007293,0.00947194,2667.8,2667.7,3.2078]
[1739198007588,4.21932716,2668.9,2667.2,1.1507]
[1739198007589,3.2078,2668.0,2667.5,4.89880759]
[1739198007794,7.41212716,2668.1,2667.3,4.89880759]
[1739198008092,4.73017615,2667.9,2667.2,1.1507]
[1739198008293,0.5896,2667.9,2667.2,1.1507]
[1739198008791,0.5896,2667.9,2667.3,0.00562356]
[1739198008987,3.2078,2667.4,2667.3,0.00562356]
[1739198009393,7.7242076,2667.8,2667.3,0.00562356]
[1739198009698,3.2078,2667.5,2667.3,0.00562356]
[1739198009887,3.9609076,2667.7,2667.3,0.00562356]
[1739198010193,0.5555,2667.8,2667.3,0.00562356]
[1739198010392,7.33343883,2667.7,2667.3,0.00562356]
[1739198011399,3.2078,2667.4,2667.3,0.00562356]
[1739198012294,13.23304446,2667.4,2666.8,40.8]
[1739198012589,3.2078,2667.0,2665.9,1.1527]
[1739198012794,3.2078,2666.8,2665.9,1.1527]
[1739198012993,3.2078,2666.8,2666.0,40.8]
[1739198013196,4.22511919,2667.1,2666.2,3.2078]
[1739198013398,3.2078,2667.2,2666.2,3.2078]
[1739198013598,0.00562356,2666.9,2666.4,0.00562356]
[1739198013994,3.2078,2666.7,2666.4,0.00562356]
[1739198014196,0.582,2666.6,2666.4,0.00562356]
[1739198014395,5.25218262,2666.6,2666.4,0.00562356]
[1739198015200,12.00210262,2666.6,2665.2,3.8182]
[1739198015396,3.2078,2666.3,2665.3,40.8]
[1739198015592,0.74994,2666.5,2665.3,40.8]
[1739198015899,4.06717875,2666.2,2665.3,40.8]
[1739198016101,3.2078,2666.3,2665.3,40.8]
[1739198016300,3.2078,2666.3,2665.5,0.00562356]
[1739198016999,4.05223345,2666.2,2665.5,0.00562356]
[1739198017199,4.3981,2666.6,2665.8,3.2078]
[1739198017699,1.1903,2666.6,2665.8,3.2078]
[1739198017896,0.582,2666.6,2665.8,3.2078]
[1739198018092,7.45953177,2666.5,2665.9,0.5818]
[1739198018293,4.25173177,2666.5,2666.1,3.2078]
[1739198018490,3.21342356,2666.9,2666.1,3.2078]
[1739198018696,3.21342356,2666.9,2666.0,0.5708]
[1739198018896,4.25173177,2666.8,2666.0,0.5708]
[1739198019501,3.21342356,2666.9,2666.1,3.2078]
[1739198019802,3.2078,2666.6,2665.9,0.5818]
[1739198019996,3.2078,2666.3,2665.9,0.5818]
[1739198020195,3.2078,2666.2,2665.5,3.81782356]
[1739198020498,3.7985,2666.2,2665.5,3.81782356]
[1739198020700,0.5907,2666.2,2665.5,3.81782356]
[1739198021100,3.21342356,2666.9,2665.6,3.2078]
[1739198021407,3.2078,2666.4,2665.6,3.2078]
[1739198021605,3.2078,2666.4,2665.7,40.8]
[1739198022099,3.2078,2666.0,2665.5,0.00562356]
[1739198022298,0.5907,2665.9,2665.5,0.00562356]
[1739198022506,0.5907,2665.9,2665.5,40.80562356]
[1739198023292,4.3731,2666.3,2665.5,40.80562356]
[1739198023498,3.7807,2666.3,2665.6,3.2078]
[1739198023698,3.7807,2666.3,2665.6,4.3814]
[1739198023997,3.2078,2666.3,2665.6,4.3814]
[1739198024193,1.7096,2666.8,2665.6,4.9796]
[1739198024397,1.7096,2666.8,2665.9,3.2078]
[1739198024600,1.1452,2666.8,2665.9,3.2078]
[1739198025704,4.353,2666.8,2665.9,3.2078]
[1739198025907,1.1452,2666.8,2665.9,3.2078]
[1739198026100,1.1452,2666.8,2665.6,4.9796]
[1739198026301,3.2078,2666.6,2665.6,4.9796]
[1739198026605,0.5729,2666.8,2666.3,3.2078]
[1739198026906,0.00562356,2666.9,2666.3,3.2078]
[1739198027102,0.00562356,2666.9,2666.4,1.1794]
[1739198027306,0.00562356,2666.9,2666.8,3.2078]
[1739198028206,0.00562356,2666.9,2666.8,40.8]
[1739198029202,0.00562356,2666.9,2666.8,44.0078]
[1739198029403,0.00562356,2666.9,2666.8,40.8]
[1739198030709,0.00562356,2666.9,2666.8,44.0078]
[1739198031008,0.587,2667.6,2666.8,44.0078]
[1739198031311,0.587,2667.6,2667.1,3.2078]
[1739198031912,3.2078,2668.6,2667.4,3.2078]
[1739198032100,3.2078,2668.6,2667.1,1.87]
[1739198032101,3.2078,2668.6,2667.8,3.2078]
[1739198032306,0.00562356,2668.3,2667.8,3.2078]
[1739198033002,0.00562356,2668.3,2667.7,0.00562356]
[1739198033003,4.05665159,2668.2,2667.7,0.00562356]
[1739198033603,0.00562356,2668.3,2667.7,0.00562356]
[1739198034207,0.00562356,2668.3,2667.8,40.8]
[1739198034605,0.00562356,2668.3,2668.0,3.2078]
[1739198035002,0.00562356,2668.3,2667.8,40.8]
[1739198035616,0.00562356,2668.3,2668.0,3.2078]
[1739198036216,3.2078,2670.7,2668.6,3.2078]
[1739198036416,3.8159,2670.7,2670.0,3.2078]
[1739198036611,3.2078,2671.0,2670.4,3.2078]
[1739198036810,17.51516401,2670.5,2670.4,3.2078]
[1739198037014,12.31628461,2670.5,2670.4,3.2078]
[1739198037218,12.31628461,2670.5,2670.4,44.0078]
[1739198037511,12.02977096,2670.5,2670.4,44.0078]
[1739198037721,12.02977096,2670.5,2670.4,40.8]
[1739198037910,12.02977096,2670.5,2670.2,0.00562356]
[1739198037911,22.01056453,2670.5,2670.2,0.00562356]
[1739198038106,16.01056453,2670.5,2670.2,0.00562356]
[1739198038309,3.2078,2670.4,2670.2,0.00562356]
[1739198039103,9.2078,2670.4,2670.2,0.00562356]
[1739198039308,7.49875907,2670.3,2670.2,0.00562356]
[1739198039706,13.49875907,2670.3,2669.2,1.898]
[1739198039919,3.2078,2670.0,2669.2,1.898]
[1739198040808,0.5948,2670.4,2669.6,3.2078]
[1739198041018,5.1078,2670.6,2669.6,3.2078]
[1739198041019,0.00562356,2669.9,2669.6,3.2078]
[1739198041721,0.00562356,2669.9,2669.7,0.5869]
[1739198042727,0.5629,2670.9,2669.7,6.5869]
[1739198043020,0.5629,2670.9,2670.3,3.2078]
[1739198043214,0.5629,2670.9,2670.0,3.2078]
[1739198043921,4.1398816,2670.8,2669.7,3.7947]
[1739198044717,4.1398816,2670.8,2670.0,3.2078]
[1739198044916,3.7707,2670.9,2670.3,3.2078]
[1739198045123,3.7707,2670.9,2669.7,0.5869]
[1739198045124,3.2078,2671.2,2670.6,3.2078]
[1739198045620,3.2078,2671.2,2670.6,3.21342356]
[1739198045815,3.2078,2671.2,2670.6,0.00562356]
[1739198046621,3.2078,2670.9,2670.6,0.00562356]
[1739198047023,4.08987519,2670.8,2670.6,0.00562356]
[1739198047419,14.46444235,2670.8,2669.1,3.2078]
[1739198047625,3.2078,2670.2,2669.1,3.2078]
[1739198047817,3.2078,2669.9,2669.1,3.2078]
[1739198048018,3.2078,2669.9,2669.0,40.8]
[1739198048221,4.06946621,2670.1,2669.0,40.8]
[1739198048222,3.2078,2670.1,2669.4,3.2078]
[1739198048420,3.2078,2670.1,2669.0,40.8]
[1739198048615,3.2078,2669.8,2669.5,0.00562356]
[1739198049323,4.33552258,2669.7,2668.5,3.7683]
[1739198049621,3.2078,2669.1,2668.1,3.2078]
[1739198049826,3.2078,2669.1,2668.6,40.8]
[1739198050230,3.2078,2669.3,2668.6,40.8]
[1739198050628,3.2078,2668.9,2668.6,40.80562356]
[1739198050923,3.2078,2668.9,2668.6,0.00562356]
[1739198051122,4.03126345,2668.8,2668.6,0.00562356]
[1739198052520,0.74931,2668.7,2667.5,0.5714]
[1739198052714,3.2078,2668.0,2667.5,0.5714]
[1739198053321,3.2078,2667.7,2667.6,40.8]
[1739198053520,4.25146157,2667.9,2667.6,40.8]
[1739198053725,3.2078,2668.0,2667.6,40.8]
[1739198054231,4.25708513,2667.9,2667.6,40.8]
[1739198054421,3.2078,2667.7,2667.4,0.00562356]
[1739198054928,3.97128038,2667.6,2667.4,0.00562356]
[1739198056421,13.59710754,2667.6,2666.9,40.8]
[1739198056725,3.2078,2667.1,2665.9,3.2078]
[1739198056926,3.2078,2666.8,2665.7,1.2095]
[1739198057226,3.2078,2666.5,2665.7,1.2095]
[1739198057733,6.83362716,2666.8,2665.8,40.8]
[1739198058027,0.00562356,2666.4,2665.8,40.80562356]
[1739198058220,0.00562356,2666.4,2666.0,3.2078]
[1739198058422,0.00562356,2666.4,2665.8,40.80562356]
[1739198059025,0.00562356,2666.4,2665.8,44.01342356]
[1739198059732,0.00562356,2666.4,2666.1,3.2078]
[1739198059927,0.00562356,2666.4,2665.8,40.80562356]
[1739198060525,3.2078,2666.2,2665.8,40.80562356]
[1739198060726,3.2078,2665.9,2665.8,0.00562356]
[1739198061127,3.2078,2666.3,2665.8,0.00562356]
[1739198061429,7.4082179,2666.3,2665.8,0.00562356]
[1739198061928,0.00562356,2666.4,2665.8,0.00562356]
[1739198062340,3.21342356,2666.4,2665.8,0.00562356]
[1739198062931,4.18124584,2666.3,2665.8,0.00562356]
[1739198063434,4.18124584,2666.3,2665.9,40.8]
[1739198064127,3.21342356,2666.4,2665.9,40.8]
[1739198065034,0.00562356,2666.4,2666.2,3.2078]
[1739198065235,0.00562356,2666.4,2665.9,44.0078]
[1739198066525,0.00562356,2666.4,2665.9,40.8]
[1739198066729,0.00562356,2666.4,2666.0,3.2078]
[1739198066933,0.00562356,2666.4,2666.3,3.2078]
[1739198067124,0.5756,2667.6,2666.3,6.83362716]
[1739198067430,3.2078,2667.8,2666.8,3.2078]
[1739198067636,3.2078,2667.8,2666.9,40.8]
[1739198067931,3.2078,2667.5,2666.9,40.8]
[1739198068327,4.25523485,2667.4,2666.9,40.8]
[1739198068525,4.25523485,2667.4,2666.9,40.80562356]
[1739198068725,0.00562356,2667.5,2666.9,40.80562356]
[1739198068928,3.2078,2667.3,2666.9,40.80562356]
[1739198069235,7.46303485,2667.4,2666.9,40.80562356]
[1739198069434,3.2078,2667.4,2666.9,40.80562356]
[1739198069832,4.25331898,2667.3,2666.9,40.80562356]
[1739198070028,3.2078,2667.0,2666.9,0.00562356]
[1739198070436,13.46623716,2667.0,2665.8,40.8]
[1739198070727,3.2078,2666.7,2665.8,40.8]
[1739198071232,3.2078,2666.4,2665.8,40.8]
[1739198071429,3.2078,2666.1,2664.9,3.2078]